[Event "*** Titled Tuesday Blitz"]
[Site "Chess.com"]
[Date "2020.11.10"]
[Round "1"]
[White "Ze-Pequeno"]
[Black "AliKa2810"]
[Result "0-1"]
[WhiteElo "2240"]
[BlackElo "2568"]
[TimeControl "180+1"]
[EndTime "10:01:58 PST"]
[Termination "AliKa2810 won by resignation"]

1. e4 {[%clk 0:02:59.6]} 1... c6 {[%clk 0:02:59.1]} 2. d4 {[%clk 0:02:59]} 2...
d5 {[%clk 0:02:59.6]} 3. Nc3 {[%clk 0:02:59.5]} 3... dxe4 {[%clk 0:02:59]} 4.
Nxe4 {[%clk 0:02:58.5]} 4... Nd7 {[%clk 0:02:58]} 5. Bd3 {[%clk 0:02:57.2]} 5...
Ngf6 {[%clk 0:02:56.8]} 6. Ng5 {[%clk 0:02:57.3]} 6... e6 {[%clk 0:02:54.2]} 7.
N1f3 {[%clk 0:02:56.8]} 7... Be7 {[%clk 0:02:50]} 8. Qe2 {[%clk 0:02:55.7]} 8...
h6 {[%clk 0:02:32.1]} 9. Nxe6 {[%clk 0:02:26.6]} 9... fxe6 {[%clk 0:02:28.9]}
10. Bg6+ {[%clk 0:02:25.6]} 10... Kf8 {[%clk 0:02:28.5]} 11. Qxe6 {[%clk
0:02:26.3]} 11... Qa5+ {[%clk 0:02:26.7]} 12. Bd2 {[%clk 0:02:24.8]} 12... Qd5
{[%clk 0:02:26.4]} 13. Qxd5 {[%clk 0:02:20.7]} 0-1

[Event "*** Titled Tuesday Blitz"]
[Site "Chess.com"]
[Date "2020.11.10"]
[Round "1"]
[White "IrishMonkey"]
[Black "Msb2"]
[Result "0-1"]
[WhiteElo "2452"]
[BlackElo "2905"]
[TimeControl "180+1"]
[EndTime "10:02:17 PST"]
[Termination "Msb2 won by resignation"]

1. d4 {[%clk 0:03:00.9]} 1... Nf6 {[%clk 0:02:59.2]} 2. c4 {[%clk 0:02:57.9]}
2... e6 {[%clk 0:02:59.6]} 3. g3 {[%clk 0:02:56.3]} 3... Bb4+ {[%clk 0:02:58.3]}
4. Bd2 {[%clk 0:02:53.5]} 4... a5 {[%clk 0:02:58.5]} 5. Bg2 {[%clk 0:02:49.6]}
5... d5 {[%clk 0:02:59]} 6. Nf3 {[%clk 0:02:47.2]} 6... O-O {[%clk 0:02:59]} 7.
a3 {[%clk 0:02:45.6]} 7... Be7 {[%clk 0:02:57.1]} 8. Qc2 {[%clk 0:02:41.3]} 8...
c6 {[%clk 0:02:56.8]} 9. O-O {[%clk 0:02:39.3]} 9... Nbd7 {[%clk 0:02:57.2]} 10.
b3 {[%clk 0:02:36.4]} 10... b6 {[%clk 0:02:54.5]} 11. Be3 {[%clk 0:02:33]} 11...
Ba6 {[%clk 0:02:50.7]} 12. Bf4 {[%clk 0:02:29.8]} 12... Rc8 {[%clk 0:02:48.2]}
13. Rd1 {[%clk 0:02:26.1]} 13... a4 {[%clk 0:02:41.3]} 14. bxa4 {[%clk
0:02:23.1]} 14... Bxc4 {[%clk 0:02:40.7]} 15. e3 {[%clk 0:02:20.3]} 15... Ne4
{[%clk 0:02:37.1]} 16. Nfd2 {[%clk 0:02:16.8]} 16... Nxd2 {[%clk 0:02:37.4]} 17.
Nxd2 {[%clk 0:02:16.3]} 17... Ba6 {[%clk 0:02:38]} 18. Nf3 {[%clk 0:02:10]}
18... g5 {[%clk 0:02:36.2]} 19. Be5 {[%clk 0:02:07]} 19... f6 {[%clk 0:02:35.7]}
20. Bh3 {[%clk 0:02:02.9]} 20... fxe5 {[%clk 0:02:34.4]} 0-1

[Event "*** Titled Tuesday Blitz"]
[Site "Chess.com"]
[Date "2020.11.10"]
[Round "1"]
[White "Warre"]
[Black "Ariadna_Atreides"]
[Result "0-1"]
[WhiteElo "2495"]
[BlackElo "2101"]
[TimeControl "180+1"]
[EndTime "10:02:24 PST"]
[Termination "Ariadna_Atreides won by resignation"]

1. d4 {[%clk 0:02:59]} 1... Nf6 {[%clk 0:02:57.4]} 2. Nc3 {[%clk 0:02:58.7]}
2... d5 {[%clk 0:02:50.1]} 3. Bf4 {[%clk 0:02:57.7]} 3... c5 {[%clk 0:02:45.3]}
4. e3 {[%clk 0:02:57.3]} 4... Nc6 {[%clk 0:02:42.8]} 5. Nb5 {[%clk 0:02:56.7]}
5... Qa5+ {[%clk 0:02:23.8]} 6. b4 {[%clk 0:02:49.4]} 6... Nxb4 {[%clk
0:02:11.7]} 7. c3 {[%clk 0:02:39.6]} 7... Na6 {[%clk 0:02:06]} 8. Bd3 {[%clk
0:02:15.9]} 8... c4 {[%clk 0:02:01.6]} 9. a4 {[%clk 0:02:14.5]} 9... cxd3 {[%clk
0:02:00.1]} 10. Qxd3 {[%clk 0:02:15.4]} 10... Bd7 {[%clk 0:01:51.2]} 0-1

[Event "*** Titled Tuesday Blitz"]
[Site "Chess.com"]
[Date "2020.11.10"]
[Round "1"]
[White "LawrenceTrent"]
[Black "pedro_nascimento85"]
[Result "1-0"]
[WhiteElo "2497"]
[BlackElo "1990"]
[TimeControl "180+1"]
[EndTime "10:02:32 PST"]
[Termination "LawrenceTrent won by resignation"]

1. e4 {[%clk 0:03:00.9]} 1... e6 {[%clk 0:02:57.2]} 2. d4 {[%clk 0:02:58.6]}
2... d5 {[%clk 0:02:56.1]} 3. Nd2 {[%clk 0:02:59.5]} 3... c5 {[%clk 0:02:51]} 4.
Ngf3 {[%clk 0:02:56.2]} 4... Nc6 {[%clk 0:02:48]} 5. exd5 {[%clk 0:02:53.5]}
5... Qxd5 {[%clk 0:02:47.2]} 6. Bc4 {[%clk 0:02:47.7]} 6... Qd8 {[%clk
0:02:46.3]} 7. dxc5 {[%clk 0:02:45.5]} 7... Bxc5 {[%clk 0:02:43.9]} 8. O-O
{[%clk 0:02:41.7]} 8... Nf6 {[%clk 0:02:43]} 9. c3 {[%clk 0:02:39.2]} 9... O-O
{[%clk 0:02:41.2]} 10. Qe2 {[%clk 0:02:36.5]} 10... a6 {[%clk 0:02:34.6]} 11.
Rd1 {[%clk 0:02:33.3]} 11... Qc7 {[%clk 0:02:33.1]} 12. Bd3 {[%clk 0:02:27.4]}
12... b5 {[%clk 0:02:28.1]} 13. Ne4 {[%clk 0:02:25.9]} 13... Be7 {[%clk
0:02:24.4]} 14. Bg5 {[%clk 0:02:18.6]} 14... Bb7 {[%clk 0:02:04.6]} 15. Nxf6+
{[%clk 0:02:15.6]} 15... Bxf6 {[%clk 0:02:03.7]} 16. Qe4 {[%clk 0:02:14.8]} 1-0

[Event "*** Titled Tuesday Blitz"]
[Site "Chess.com"]
[Date "2020.11.10"]
[Round "1"]
[White "albano87"]
[Black "zaur-mammadov"]
[Result "0-1"]
[WhiteElo "2313"]
[BlackElo "2635"]
[TimeControl "180+1"]
[EndTime "10:03:15 PST"]
[Termination "zaur-mammadov won by resignation"]

1. d4 {[%clk 0:02:57.8]} 1... d5 {[%clk 0:02:59.3]} 2. Nf3 {[%clk 0:02:58.7]}
2... Nf6 {[%clk 0:02:58.6]} 3. g3 {[%clk 0:02:59.6]} 3... c5 {[%clk 0:02:58.1]}
4. Bg2 {[%clk 0:03:00.5]} 4... Nc6 {[%clk 0:02:58.3]} 5. c4 {[%clk 0:02:52.3]}
5... dxc4 {[%clk 0:02:56.6]} 6. Qa4 {[%clk 0:02:52.1]} 6... Be6 {[%clk
0:02:48.3]} 7. O-O {[%clk 0:02:46.8]} 7... Bd5 {[%clk 0:02:46.4]} 8. Nc3 {[%clk
0:02:41.4]} 8... e6 {[%clk 0:02:46.6]} 9. Bg5 {[%clk 0:02:37.3]} 9... Be7 {[%clk
0:02:45.5]} 10. Bxf6 {[%clk 0:02:27.2]} 10... Bxf6 {[%clk 0:02:45.3]} 11. e4
{[%clk 0:02:27.4]} 11... cxd4 {[%clk 0:02:39.6]} 12. exd5 {[%clk 0:02:27.2]}
12... exd5 {[%clk 0:02:39.8]} 13. Rfe1+ {[%clk 0:02:19.1]} 13... Kf8 {[%clk
0:02:40]} 14. Ne2 {[%clk 0:01:57.7]} 14... g6 {[%clk 0:02:37.6]} 15. Rad1 {[%clk
0:01:54.7]} 15... d3 {[%clk 0:02:37.4]} 16. Nc3 {[%clk 0:01:54.5]} 16... Kg7
{[%clk 0:02:37.1]} 17. Nd2 {[%clk 0:01:38.5]} 17... Bxc3 {[%clk 0:02:35.6]} 18.
bxc3 {[%clk 0:01:39.2]} 18... a6 {[%clk 0:02:36.4]} 19. Nf3 {[%clk 0:01:34.8]}
19... Qd6 {[%clk 0:02:34.5]} 20. Nd4 {[%clk 0:01:34.5]} 20... b5 {[%clk
0:02:32.3]} 21. Nxb5 {[%clk 0:01:32.4]} 21... axb5 {[%clk 0:02:32]} 22. Qxb5
{[%clk 0:01:33.3]} 22... Rhd8 {[%clk 0:02:29.2]} 0-1

[Event "*** Titled Tuesday Blitz"]
[Site "Chess.com"]
[Date "2020.11.10"]
[Round "1"]
[White "GalperinPlaton"]
[Black "Pliukha_Mikhail"]
[Result "0-1"]
[WhiteElo "2879"]
[BlackElo "2481"]
[TimeControl "180+1"]
[EndTime "10:03:42 PST"]
[Termination "Pliukha_Mikhail won by resignation"]

1. d4 {[%clk 0:02:17.8]} 1... Nf6 {[%clk 0:02:59.7]} 2. Nf3 {[%clk 0:02:18.1]}
2... b6 {[%clk 0:03:00.1]} 3. e3 {[%clk 0:02:13.5]} 3... e6 {[%clk 0:03:00]} 4.
Bd3 {[%clk 0:02:14]} 4... Bb7 {[%clk 0:03:00.6]} 5. O-O {[%clk 0:02:14.6]} 5...
Be7 {[%clk 0:03:01.4]} 6. Nbd2 {[%clk 0:02:14.2]} 6... c5 {[%clk 0:03:01.2]} 7.
e4 {[%clk 0:02:11.5]} 7... cxd4 {[%clk 0:03:01.3]} 8. e5 {[%clk 0:02:11.9]} 8...
Nd5 {[%clk 0:02:57.7]} 9. Nxd4 {[%clk 0:02:12]} 9... Nc6 {[%clk 0:02:58.4]} 10.
Nxc6 {[%clk 0:02:11.6]} 10... dxc6 {[%clk 0:02:58.2]} 11. Qg4 {[%clk 0:02:11.6]}
11... Qc7 {[%clk 0:02:52.7]} 12. Qxg7 {[%clk 0:02:09.7]} 12... O-O-O {[%clk
0:02:51.5]} 13. Qxf7 {[%clk 0:02:09.7]} 13... Kb8 {[%clk 0:02:49.6]} 14. Qxe6
{[%clk 0:02:04]} 14... Nf4 {[%clk 0:02:49.8]} 15. Qg4 {[%clk 0:01:55.6]} 15...
Nxd3 {[%clk 0:02:43.9]} 16. cxd3 {[%clk 0:01:56.5]} 16... Rhg8 {[%clk
0:02:42.7]} 17. Qe2 {[%clk 0:01:54.1]} 17... c5 {[%clk 0:02:38.1]} 18. Nf3
{[%clk 0:01:50]} 18... Qc6 {[%clk 0:02:27.8]} 19. Qe4 {[%clk 0:01:50.3]} 19...
Qe6 {[%clk 0:02:21]} 20. Qe3 {[%clk 0:01:49.6]} 20... Rxg2+ {[%clk 0:02:15.8]}
21. Kh1 {[%clk 0:01:46.9]} 21... Qh3 {[%clk 0:02:09.5]} 22. e6 {[%clk 0:01:21]}
22... Rxh2+ {[%clk 0:02:02.3]} 0-1

[Event "*** Titled Tuesday Blitz"]
[Site "Chess.com"]
[Date "2020.11.10"]
[Round "1"]
[White "Brave_spirit12"]
[Black "mamonika"]
[Result "1-0"]
[WhiteElo "2500"]
[BlackElo "2002"]
[TimeControl "180+1"]
[EndTime "10:03:42 PST"]
[Termination "Brave_spirit12 won by resignation"]

1. e4 {[%clk 0:03:00.7]} 1... c5 {[%clk 0:02:58.7]} 2. c3 {[%clk 0:03:00.5]}
2... d5 {[%clk 0:02:48.1]} 3. exd5 {[%clk 0:03:01.4]} 3... Qxd5 {[%clk
0:02:48.6]} 4. Nf3 {[%clk 0:03:01.2]} 4... Nc6 {[%clk 0:02:48.1]} 5. Be2 {[%clk
0:02:59.5]} 5... Nf6 {[%clk 0:02:46.9]} 6. d4 {[%clk 0:02:59.5]} 6... cxd4
{[%clk 0:02:45.7]} 7. cxd4 {[%clk 0:03:00.4]} 7... e5 {[%clk 0:02:41.4]} 8. O-O
{[%clk 0:02:59]} 8... exd4 {[%clk 0:02:38.5]} 9. Re1 {[%clk 0:02:55.6]} 9... Be7
{[%clk 0:02:38.4]} 10. Na3 {[%clk 0:02:46.8]} 10... O-O {[%clk 0:02:35.6]} 11.
Nb5 {[%clk 0:02:44.9]} 11... Qd6 {[%clk 0:02:14.3]} 12. Nxd6 {[%clk 0:02:42.9]}
12... Bxd6 {[%clk 0:02:14.1]} 13. Nxd4 {[%clk 0:02:42.7]} 13... Rd8 {[%clk
0:02:11.7]} 14. Nxc6 {[%clk 0:02:40]} 14... bxc6 {[%clk 0:02:12.6]} 15. Bg5
{[%clk 0:02:40.1]} 15... Be6 {[%clk 0:01:39.3]} 16. Bxf6 {[%clk 0:02:35.7]}
16... gxf6 {[%clk 0:01:40.2]} 17. Bf3 {[%clk 0:02:36.1]} 17... Rab8 {[%clk
0:01:33.7]} 18. Qc2 {[%clk 0:02:33.3]} 18... Rb6 {[%clk 0:01:27.1]} 19. Rad1
{[%clk 0:02:30.7]} 19... Kf8 {[%clk 0:01:20.2]} 20. Qxh7 {[%clk 0:02:21.2]}
20... Ke7 {[%clk 0:01:19]} 21. Bg4 {[%clk 0:02:17.6]} 21... Bb4 {[%clk
0:01:04.2]} 22. Rxe6+ {[%clk 0:02:15]} 1-0

[Event "*** Titled Tuesday Blitz"]
[Site "Chess.com"]
[Date "2020.11.10"]
[Round "1"]
[White "Anaj14"]
[Black "CHESSMASTER759"]
[Result "0-1"]
[WhiteElo "2332"]
[BlackElo "2651"]
[TimeControl "180+1"]
[EndTime "10:03:51 PST"]
[Termination "CHESSMASTER759 won by resignation"]

1. Nf3 {[%clk 0:02:59.4]} 1... d6 {[%clk 0:03:00]} 2. g3 {[%clk 0:02:56.3]} 2...
Nf6 {[%clk 0:03:00.9]} 3. Bg2 {[%clk 0:02:56.4]} 3... g6 {[%clk 0:03:01.6]} 4.
O-O {[%clk 0:02:56.5]} 4... Bg7 {[%clk 0:03:02.5]} 5. d3 {[%clk 0:02:53.9]} 5...
O-O {[%clk 0:03:03.4]} 6. e4 {[%clk 0:02:53.3]} 6... c5 {[%clk 0:03:02.8]} 7.
Re1 {[%clk 0:02:52.2]} 7... Nc6 {[%clk 0:03:01.9]} 8. Nc3 {[%clk 0:02:48.2]}
8... Rb8 {[%clk 0:03:01.4]} 9. Ne2 {[%clk 0:02:46.8]} 9... b5 {[%clk 0:03:00.8]}
10. a3 {[%clk 0:02:36.2]} 10... a5 {[%clk 0:03:00.3]} 11. a4 {[%clk 0:02:28.8]}
11... b4 {[%clk 0:02:58]} 12. Rb1 {[%clk 0:02:24.9]} 12... Ba6 {[%clk
0:02:57.6]} 13. b3 {[%clk 0:02:24.6]} 13... Nd7 {[%clk 0:02:54.4]} 14. Bb2
{[%clk 0:02:21.6]} 14... Bxb2 {[%clk 0:02:50.6]} 15. Rxb2 {[%clk 0:02:22.5]}
15... e5 {[%clk 0:02:51]} 16. Nd2 {[%clk 0:02:18.8]} 16... Nd4 {[%clk
0:02:46.7]} 17. Nc4 {[%clk 0:02:12.8]} 17... Bxc4 {[%clk 0:02:43.1]} 18. dxc4
{[%clk 0:02:12.8]} 18... h5 {[%clk 0:02:43.6]} 19. h4 {[%clk 0:02:12.1]} 19...
Kg7 {[%clk 0:02:40]} 20. Rb1 {[%clk 0:02:06.1]} 20... Qe7 {[%clk 0:02:39.9]} 21.
Nc1 {[%clk 0:01:58]} 21... Rh8 {[%clk 0:02:35.5]} 22. Nd3 {[%clk 0:01:38.6]}
22... g5 {[%clk 0:02:32.8]} 23. hxg5 {[%clk 0:01:34.5]} 23... Qxg5 {[%clk
0:02:31.6]} 24. Qc1 {[%clk 0:01:31.3]} 24... Qg6 {[%clk 0:02:29.4]} 25. Kf1
{[%clk 0:01:26.3]} 25... h4 {[%clk 0:02:26.4]} 26. gxh4 {[%clk 0:01:21.3]} 26...
Rxh4 {[%clk 0:02:24.8]} 27. f3 {[%clk 0:01:17.1]} 27... Qg3 {[%clk 0:02:21.4]}
28. Re3 {[%clk 0:01:13.8]} 28... Rbh8 {[%clk 0:02:17.1]} 29. Qd2 {[%clk
0:01:12.7]} 29... Rh1+ {[%clk 0:02:13.2]} 0-1

[Event "*** Titled Tuesday Blitz"]
[Site "Chess.com"]
[Date "2020.11.10"]
[Round "1"]
[White "eightbyeightchess"]
[Black "Funo09"]
[Result "0-1"]
[WhiteElo "2404"]
[BlackElo "2815"]
[TimeControl "180+1"]
[EndTime "10:03:57 PST"]
[Termination "Funo09 won by resignation"]

1. e4 {[%clk 0:03:00.9]} 1... c5 {[%clk 0:02:59.3]} 2. Nf3 {[%clk 0:03:00.1]}
2... d6 {[%clk 0:02:58]} 3. d4 {[%clk 0:02:59.3]} 3... cxd4 {[%clk 0:02:58.9]}
4. Qxd4 {[%clk 0:02:58.9]} 4... a6 {[%clk 0:02:57.3]} 5. c4 {[%clk 0:02:55.2]}
5... Nc6 {[%clk 0:02:57.3]} 6. Qe3 {[%clk 0:02:54.2]} 6... Nf6 {[%clk
0:02:57.4]} 7. h3 {[%clk 0:02:53.9]} 7... g6 {[%clk 0:02:57.4]} 8. Be2 {[%clk
0:02:54.2]} 8... Bg7 {[%clk 0:02:57.7]} 9. O-O {[%clk 0:02:54.8]} 9... O-O
{[%clk 0:02:58.1]} 10. Rd1 {[%clk 0:02:55.4]} 10... Be6 {[%clk 0:02:52.5]} 11.
e5 {[%clk 0:02:48.3]} 11... Nd7 {[%clk 0:02:48.1]} 12. exd6 {[%clk 0:02:47.6]}
12... exd6 {[%clk 0:02:48.6]} 13. Rxd6 {[%clk 0:02:39.8]} 13... Re8 {[%clk
0:02:47.3]} 14. Qd2 {[%clk 0:02:02.1]} 14... Bf8 {[%clk 0:02:45.3]} 15. Rd3
{[%clk 0:01:54.1]} 15... Bxc4 {[%clk 0:01:48.3]} 16. Rxd7 {[%clk 0:01:51.6]}
16... Rxe2 {[%clk 0:01:48.8]} 17. Rxd8 {[%clk 0:01:50.8]} 17... Rxd8 {[%clk
0:01:49.7]} 18. Qc3 {[%clk 0:01:29.5]} 18... Rd1+ {[%clk 0:01:47.8]} 19. Kh2
{[%clk 0:01:28.5]} 19... Bd6+ {[%clk 0:01:47.3]} 20. Ne5 {[%clk 0:01:11.9]}
20... Bxe5+ {[%clk 0:01:46.8]} 21. Qxe5 {[%clk 0:01:12.1]} 21... Nxe5 {[%clk
0:01:46.5]} 0-1

[Event "*** Titled Tuesday Blitz"]
[Site "Chess.com"]
[Date "2020.11.10"]
[Round "1"]
[White "Aleksandar-Topalov"]
[Black "GM_Crest"]
[Result "0-1"]
[WhiteElo "2364"]
[BlackElo "2718"]
[TimeControl "180+1"]
[EndTime "10:03:57 PST"]
[Termination "GM_Crest won by resignation"]

1. b3 {[%clk 0:03:00.1]} 1... e5 {[%clk 0:02:56.9]} 2. Bb2 {[%clk 0:03:00]} 2...
Nc6 {[%clk 0:02:52.8]} 3. c4 {[%clk 0:02:59.9]} 3... g6 {[%clk 0:02:50.8]} 4.
Nc3 {[%clk 0:02:59.2]} 4... Bg7 {[%clk 0:02:51.2]} 5. g3 {[%clk 0:02:59.5]} 5...
d6 {[%clk 0:02:50.9]} 6. Bg2 {[%clk 0:02:59.8]} 6... f5 {[%clk 0:02:49.1]} 7. a3
{[%clk 0:02:59.7]} 7... Nf6 {[%clk 0:02:49.6]} 8. e3 {[%clk 0:03:00]} 8... O-O
{[%clk 0:02:49.5]} 9. Nge2 {[%clk 0:02:55.4]} 9... Be6 {[%clk 0:02:36]} 10. Nd5
{[%clk 0:02:55.5]} 10... Rb8 {[%clk 0:02:32.5]} 11. d4 {[%clk 0:02:55.1]} 11...
exd4 {[%clk 0:02:29]} 12. Nxd4 {[%clk 0:02:55.3]} 12... Nxd4 {[%clk 0:02:28.8]}
13. Bxd4 {[%clk 0:02:55.1]} 13... c6 {[%clk 0:02:17.3]} 14. Nxf6+ {[%clk
0:02:54.3]} 14... Bxf6 {[%clk 0:02:17.3]} 15. O-O {[%clk 0:02:52]} 15... a5
{[%clk 0:02:02.4]} 16. a4 {[%clk 0:02:47.4]} 16... Qe7 {[%clk 0:01:57.5]} 17.
Qd2 {[%clk 0:02:44.5]} 17... Ra8 {[%clk 0:01:45.4]} 18. Rfd1 {[%clk 0:02:42.6]}
18... Rfd8 {[%clk 0:01:45.6]} 19. Qc3 {[%clk 0:02:41.7]} 19... Bxd4 {[%clk
0:01:42.1]} 20. Rxd4 {[%clk 0:02:40.7]} 20... Qg7 {[%clk 0:01:30.2]} 21. Qd2
{[%clk 0:02:40.5]} 21... c5 {[%clk 0:01:05.9]} 0-1

[Event "*** Titled Tuesday Blitz"]
[Site "Chess.com"]
[Date "2020.11.10"]
[Round "1"]
[White "Semen_Khanin"]
[Black "anon481216"]
[Result "1-0"]
[WhiteElo "2780"]
[BlackElo "2399"]
[TimeControl "180+1"]
[EndTime "10:04:07 PST"]
[Termination "Semen_Khanin won by resignation"]

1. e4 {[%clk 0:02:59.8]} 1... c5 {[%clk 0:02:59.1]} 2. Nf3 {[%clk 0:02:59.4]}
2... Nf6 {[%clk 0:02:59.7]} 3. e5 {[%clk 0:02:58.7]} 3... Nd5 {[%clk 0:02:59.4]}
4. Nc3 {[%clk 0:02:58.7]} 4... Nxc3 {[%clk 0:02:58.8]} 5. dxc3 {[%clk
0:02:59.3]} 5... Nc6 {[%clk 0:02:59.4]} 6. Bf4 {[%clk 0:02:58]} 6... Qb6 {[%clk
0:02:58.5]} 7. b3 {[%clk 0:02:57.4]} 7... Qc7 {[%clk 0:02:56.6]} 8. Qd2 {[%clk
0:02:56.4]} 8... e6 {[%clk 0:02:49.1]} 9. Bd3 {[%clk 0:02:53.8]} 9... a6 {[%clk
0:02:48.7]} 10. O-O {[%clk 0:02:52.4]} 10... b5 {[%clk 0:02:48.6]} 11. a4 {[%clk
0:02:51.4]} 11... Rb8 {[%clk 0:02:47]} 12. axb5 {[%clk 0:02:51]} 12... axb5
{[%clk 0:02:46.8]} 13. Rfe1 {[%clk 0:02:49]} 13... h6 {[%clk 0:02:45.7]} 14. Qe2
{[%clk 0:02:47.4]} 14... b4 {[%clk 0:02:44.6]} 15. c4 {[%clk 0:02:45.3]} 15...
Be7 {[%clk 0:02:44.1]} 16. h4 {[%clk 0:02:39.8]} 16... Bb7 {[%clk 0:02:37.9]}
17. h5 {[%clk 0:02:39.6]} 17... f5 {[%clk 0:02:19.1]} 18. exf6 {[%clk
0:02:28.5]} 18... Qxf4 {[%clk 0:02:18.5]} 19. Bg6+ {[%clk 0:02:23.4]} 19... Kd8
{[%clk 0:02:18.2]} 20. fxe7+ {[%clk 0:02:13.7]} 20... Kxe7 {[%clk 0:02:16.2]}
21. Rad1 {[%clk 0:02:13.5]} 21... Rbd8 {[%clk 0:02:07.8]} 22. g3 {[%clk
0:02:05.4]} 22... Qf6 {[%clk 0:02:03.1]} 23. Be4 {[%clk 0:02:05.3]} 23... Rhf8
{[%clk 0:02:02.1]} 24. Qe3 {[%clk 0:02:05.2]} 24... d6 {[%clk 0:01:57.2]} 25.
Nh4 {[%clk 0:02:05]} 25... Rfe8 {[%clk 0:01:37.1]} 26. Bg6 {[%clk 0:01:54.5]}
26... Rf8 {[%clk 0:01:29.9]} 27. Nf5+ {[%clk 0:01:54.1]} 27... Kd7 {[%clk
0:01:24.3]} 28. Rxd6+ {[%clk 0:01:53.9]} 28... Kc7 {[%clk 0:01:24.5]} 29. Rxe6
{[%clk 0:01:54.1]} 1-0

[Event "*** Titled Tuesday Blitz"]
[Site "Chess.com"]
[Date "2020.11.10"]
[Round "1"]
[White "FMJoseHerrera"]
[Black "emiliochess"]
[Result "1-0"]
[WhiteElo "2589"]
[BlackElo "2270"]
[TimeControl "180+1"]
[EndTime "10:04:08 PST"]
[Termination "FMJoseHerrera won by resignation"]

1. Nf3 {[%clk 0:02:50.9]} 1... d5 {[%clk 0:02:58.5]} 2. g3 {[%clk 0:02:47]} 2...
Bf5 {[%clk 0:02:58.1]} 3. Bg2 {[%clk 0:02:46.7]} 3... e6 {[%clk 0:02:58.4]} 4.
d3 {[%clk 0:02:46.2]} 4... Nf6 {[%clk 0:02:57.5]} 5. O-O {[%clk 0:02:44.3]} 5...
Be7 {[%clk 0:02:57.6]} 6. c4 {[%clk 0:02:43.6]} 6... c5 {[%clk 0:02:53.9]} 7.
cxd5 {[%clk 0:02:42.2]} 7... exd5 {[%clk 0:02:54.8]} 8. Nc3 {[%clk 0:02:41.9]}
8... Nc6 {[%clk 0:02:53.4]} 9. Qa4 {[%clk 0:02:38.3]} 9... O-O {[%clk
0:02:52.5]} 10. e4 {[%clk 0:02:36.6]} 10... dxe4 {[%clk 0:02:30.5]} 11. dxe4
{[%clk 0:02:37.5]} 11... Bg6 {[%clk 0:02:26.7]} 12. Be3 {[%clk 0:01:54.6]} 12...
a6 {[%clk 0:02:18.6]} 13. Rad1 {[%clk 0:01:50.6]} 13... Qc8 {[%clk 0:02:09.8]}
14. Rfe1 {[%clk 0:01:38.9]} 14... Re8 {[%clk 0:02:07.6]} 15. Nd5 {[%clk
0:01:31.5]} 15... Nxe4 {[%clk 0:01:47]} 16. Nb6 {[%clk 0:01:30.3]} 16... Qb8
{[%clk 0:01:45.4]} 17. Bf4 {[%clk 0:01:25.5]} 17... Nd6 {[%clk 0:01:31.8]} 18.
Nxa8 {[%clk 0:01:24.1]} 18... Qxa8 {[%clk 0:01:28]} 19. Bxd6 {[%clk 0:01:23.1]}
19... Bxd6 {[%clk 0:01:24]} 20. Rxd6 {[%clk 0:01:22.6]} 1-0

[Event "*** Titled Tuesday Blitz"]
[Site "Chess.com"]
[Date "2020.11.10"]
[Round "1"]
[White "Neftegor"]
[Black "NefeLV"]
[Result "1-0"]
[WhiteElo "2477"]
[BlackElo "1762"]
[TimeControl "180+1"]
[EndTime "10:04:18 PST"]
[Termination "Neftegor won by resignation"]

1. d4 {[%clk 0:03:00.9]} 1... Nf6 {[%clk 0:02:55.4]} 2. c4 {[%clk 0:03:00.5]}
2... g6 {[%clk 0:02:53.4]} 3. Nc3 {[%clk 0:03:00.3]} 3... Bg7 {[%clk 0:02:53]}
4. e4 {[%clk 0:03:00.3]} 4... d6 {[%clk 0:02:50.3]} 5. Nf3 {[%clk 0:03:00]} 5...
O-O {[%clk 0:02:50.2]} 6. Be2 {[%clk 0:02:59.2]} 6... c5 {[%clk 0:02:46.4]} 7.
O-O {[%clk 0:02:58.1]} 7... cxd4 {[%clk 0:02:45.7]} 8. Nxd4 {[%clk 0:02:58.2]}
8... Nc6 {[%clk 0:02:46.3]} 9. Be3 {[%clk 0:02:58.2]} 9... Bd7 {[%clk
0:02:44.3]} 10. Nc2 {[%clk 0:02:58.2]} 10... Rc8 {[%clk 0:02:43.5]} 11. Qd2
{[%clk 0:02:57.2]} 11... Ne5 {[%clk 0:02:42.7]} 12. b3 {[%clk 0:02:56.5]} 12...
a6 {[%clk 0:02:38.9]} 13. Rac1 {[%clk 0:02:43.7]} 13... Qa5 {[%clk 0:02:28.5]}
14. Nd5 {[%clk 0:02:36.7]} 14... Qd8 {[%clk 0:02:24.8]} 15. f3 {[%clk
0:02:30.6]} 15... Re8 {[%clk 0:02:19.5]} 16. Bb6 {[%clk 0:02:29.5]} 16... Nxd5
{[%clk 0:02:10.5]} 17. Bxd8 {[%clk 0:02:27.5]} 17... Rexd8 {[%clk 0:02:07.5]}
18. exd5 {[%clk 0:02:24]} 18... b5 {[%clk 0:02:05.1]} 19. f4 {[%clk 0:02:22.3]}
19... bxc4 {[%clk 0:02:03.8]} 20. fxe5 {[%clk 0:02:20.3]} 20... cxb3 {[%clk
0:02:01.2]} 21. axb3 {[%clk 0:02:20.3]} 21... Bxe5 {[%clk 0:01:59.3]} 22. Nb4
{[%clk 0:02:16.3]} 22... a5 {[%clk 0:01:52.4]} 23. Nc6 {[%clk 0:02:16.2]} 23...
Re8 {[%clk 0:01:50.8]} 24. Nxe5 {[%clk 0:02:08.7]} 24... dxe5 {[%clk 0:01:50.5]}
25. Bc4 {[%clk 0:02:08.6]} 25... Kg7 {[%clk 0:01:48.2]} 26. Qxa5 {[%clk
0:02:05.4]} 26... Bf5 {[%clk 0:01:44.8]} 27. Qc3 {[%clk 0:02:02.3]} 27... f6
{[%clk 0:01:43]} 28. Qf3 {[%clk 0:02:02.2]} 28... Bd7 {[%clk 0:01:41.9]} 29. d6
{[%clk 0:01:57.5]} 29... exd6 {[%clk 0:01:41.2]} 30. Qxf6+ {[%clk 0:01:56.6]}
30... Kh6 {[%clk 0:01:41.3]} 31. Qxd6 {[%clk 0:01:53.6]} 31... Bf5 {[%clk
0:01:39.7]} 32. Rxf5 {[%clk 0:01:49.5]} 32... Rcd8 {[%clk 0:01:37.4]} 33. Qb6
{[%clk 0:01:45.9]} 1-0